bitfinex-derivatives/quotes_SOLF0:USTF0_20250911
["timestamp","ask_amount","ask_price","bid_price","bid_amount"]
[1757602176301,6.84,227.21,227.02,7.22]
[1757602176507,6.84,227.19,227.02,7.22]
[1757602178910,6.84,227.21,227.04,7.22]
[1757602179106,6.84,227.19,227.04,57.16]
[1757602179312,6.84,227.25,227.04,7.22]
[1757602179513,6.84,227.23,227.04,7.22]
[1757602179710,6.84,227.21,227.04,7.22]
[1757602179909,6.84,227.19,227.04,7.22]
[1757602180117,6.84,227.17,227.04,7.22]
[1757602182319,6.84,227.15,227.04,7.22]
[1757602182618,6.84,227.13,227.0,7.22]
[1757602187213,6.84,227.13,226.95,13.2425528]
[1757602187415,6.84,227.11,226.96,7.22]
[1757602188819,6.84,227.09,226.96,7.22]
[1757602192018,6.84,227.13,226.9,7.22]
[1757602192224,10.05538483,227.12,226.9,116.92]
[1757602192418,10.05538483,227.11,226.9,20.12316632]
[1757602192720,126.59538483,227.1,226.9,7.22]
[1757602192923,6.84,227.08,226.9,7.22]
[1757602193124,6.84,227.08,226.91,7.22]
[1757602194825,6.84,227.12,226.9,7.22]
[1757602195026,10.06144102,227.11,226.91,109.7]
[1757602195226,13.4463595,227.1,226.92,7.22]
[1757602195431,6.84,227.08,226.92,7.22]
[1757602197128,3.54192778,227.07,226.92,7.22]
[1757602197326,6.84,227.12,226.92,7.22]
[1757602197621,7.3,227.1,226.92,7.22]
[1757602197822,7.3,227.08,226.92,7.22]
[1757602198025,7.3,227.06,226.92,7.22]
[1757602198931,7.3,227.04,226.92,7.22]
[1757602200525,7.3,227.09,226.92,7.22]
[1757602201124,3.54606712,227.08,226.92,7.22]
[1757602201324,7.3,227.07,226.92,7.22]
[1757602201528,7.3,227.07,226.94,7.17]
[1757602202121,3.54675076,227.06,226.94,7.17]
[1757602202323,35.24,227.13,226.94,7.17]
[1757602202324,7.3,227.04,226.94,7.17]
[1757602203529,7.3,227.04,226.89,156.68592371]
[1757602203729,7.3,227.04,226.9,7.17]
[1757602207527,13.5,227.11,226.9,116.87]
[1757602207729,10.07472296,227.1,226.9,116.87]
[1757602207933,7.3,227.08,226.9,116.87]
[1757602208136,7.3,227.06,226.9,7.17]
[1757602208332,7.3,227.04,226.9,7.17]
[1757602208534,7.3,227.1,226.9,116.87]
[1757602208732,7.3,227.08,226.9,116.87]
[1757602209026,10.0787307,227.07,226.9,116.87]
[1757602209231,10.0787307,227.06,226.9,116.87]
[1757602209429,7.3,227.04,226.9,116.87]
[1757602209732,7.3,227.02,226.9,116.85]
[1757602209935,7.3,227.02,226.9,7.17]
[1757602210636,7.3,227.02,226.9,116.85]
[1757602211232,7.3,227.02,226.9,7.17]
[1757602214033,9.84,227.08,226.91,109.68]
[1757602214238,9.84,227.08,226.9,7.17]
[1757602214239,7.3,227.06,226.9,116.85]
[1757602214435,10.07995819,227.05,226.9,116.85]
[1757602214635,7.3,227.03,226.9,116.85]
[1757602214832,3.54607519,227.02,226.9,7.17]
[1757602215038,7.3,227.01,226.9,7.17]
[1757602216139,7.3,227.1,226.9,7.17]
[1757602216334,6.61805393,227.09,226.9,7.17]
[1757602216534,3.54630833,227.08,226.9,7.17]
[1757602216735,7.3,227.1,226.9,7.17]
[1757602216930,6.60038645,227.09,226.91,31.5]
[1757602217137,3.52824346,227.08,226.92,59.77]
[1757602217336,7.3,227.1,226.93,7.17]
[1757602217533,3.07245528,227.09,226.93,7.17]
[1757602217736,3.52858113,227.08,226.93,7.17]
[1757602217938,7.3,227.1,226.93,7.17]
[1757602218132,6.59915637,227.09,226.93,7.17]
[1757602218336,3.52776968,227.08,226.93,7.17]
[1757602218537,7.3,227.1,226.93,7.17]
[1757602218734,6.60087014,227.09,226.93,7.17]
[1757602218940,7.3,227.1,226.93,7.17]
[1757602219241,10.06232106,227.09,226.93,79.33]
[1757602219438,7.3,227.07,226.93,7.17]
[1757602219647,7.3,227.07,226.93,57.05]
[1757602219844,7.3,227.13,226.93,57.05]
[1757602220042,7.3,227.11,226.93,57.05]
[1757602220243,7.3,227.09,226.93,7.17]
[1757602220445,7.3,227.07,226.93,7.17]
[1757602220744,7.3,227.05,226.93,7.17]
[1757602223541,7.3,227.03,226.93,7.17]
[1757602224245,7.3,227.01,226.93,7.17]
[1757602224642,7.3,227.01,226.89,7.17]
[1757602224946,7.3,226.99,226.84,172.6101613]
[1757602225145,7.3,226.97,226.84,172.6101613]
[1757602225451,7.3,226.95,226.84,172.6101613]
[1757602225948,7.3,226.95,226.84,7.17]
[1757602227348,4.78017548,227.04,226.84,7.17]
[1757602227543,28.81315669,227.03,226.84,7.17]
[1757602227745,7.35,227.01,226.84,7.17]
[1757602227943,10.10315669,227.0,226.84,7.17]
[1757602228143,7.35,227.05,226.84,7.17]
[1757602228347,10.10639132,227.04,226.84,7.20758407]
[1757602228546,7.35,227.05,226.87,7.33]
[1757602228547,3.53617902,227.03,226.87,7.33]
[1757602228846,7.35,227.05,226.89,7.33]
[1757602229040,3.53661222,227.04,226.89,7.33]
[1757602229237,7.35,227.05,226.89,7.33]
[1757602229443,3.53723642,227.04,226.89,7.33]
[1757602229651,21.03,227.12,226.89,7.33]
[1757602229946,10.11231875,227.11,226.91,7.33]
[1757602230148,10.11231875,227.1,226.91,7.33]
[1757602230347,10.11231875,227.09,226.91,7.33]
[1757602230543,10.11231875,227.08,226.91,7.33]
[1757602230745,7.35,227.12,226.91,14.53758407]
[1757602230942,10.11504262,227.11,226.93,7.33]
[1757602231145,7.35,227.12,226.93,7.33]
[1757602231146,10.11504262,227.1,226.93,7.33]
[1757602231449,7.35,227.08,226.94,45.82]
[1757602231651,7.35,227.08,226.95,7.33]
[1757602231948,7.35,227.08,226.97,7.33]
[1757602232543,3.53878416,227.07,226.93,69.33]
[1757602232746,7.35,227.05,226.93,7.33]
[1757602237149,7.35,227.13,226.93,7.33]
[1757602237345,7.35,227.11,226.93,7.33]
[1757602237552,10.12274452,227.1,226.93,7.33]
[1757602237851,7.35,227.08,226.93,7.33]
[1757602238248,3.54160716,227.07,226.93,7.33]
[1757602238550,7.35,227.08,226.93,7.33]
[1757602238751,6.62501751,227.07,226.93,7.33]
[1757602239051,7.35,227.08,226.93,7.33]
[1757602239250,6.62472215,227.07,226.93,7.33]
[1757602239450,7.35,227.08,226.93,7.33]
[1757602239651,6.62487731,227.07,226.94,51.6]
[1757602239854,3.5415948,227.06,226.95,7.33]
[1757602240051,7.35,227.08,226.95,7.33]
[1757602240253,3.54140148,227.07,226.95,7.33]
[1757602240452,7.35,227.08,226.95,7.33]
[1757602240653,3.5416056,227.07,226.95,7.33]
[1757602240849,7.35,227.08,226.95,7.33]
[1757602241147,3.54160587,227.07,226.95,7.33]
[1757602241352,7.35,227.08,226.95,7.33]
[1757602241553,3.541486,227.07,226.95,7.33]
[1757602241751,7.35,227.08,226.95,7.33]
[1757602241947,3.54148573,227.07,226.95,7.33]
[1757602242143,7.35,227.08,226.95,7.33]
[1757602242350,3.5413224,227.07,226.95,7.33]
[1757602242560,7.35,227.08,226.95,7.33]
[1757602242758,3.54120493,227.07,226.95,7.33]
[1757602242947,7.35,227.08,226.95,7.33]
[1757602243151,3.54120486,227.07,226.95,7.33]
[1757602243454,7.35,227.08,226.95,7.33]
[1757602243655,3.54095568,227.07,226.95,7.33]
[1757602243951,7.35,227.08,226.95,7.33]
[1757602244157,3.54095568,227.07,226.95,7.33]
[1757602244356,7.35,227.08,226.95,7.33]
[1757602244656,3.54063082,227.07,226.95,7.33]
[1757602244856,7.35,227.08,226.95,7.33]
[1757602245057,3.5405706,227.07,226.95,7.33]
[1757602245356,7.35,227.08,226.95,7.33]
[1757602245658,7.35,227.06,226.95,7.33]
[1757602245958,3.54017425,227.05,226.95,7.33]
[1757602246153,30.84017548,227.15,226.95,7.33]
[1757602246154,7.35,227.03,226.95,7.33]
[1757602247152,7.35,227.13,226.95,7.33]
[1757602247458,7.35,227.11,226.95,7.33]
[1757602247647,7.35,227.09,226.95,7.33]
[1757602247853,6.64796385,227.08,226.95,7.33]
[1757602248054,3.56603614,227.07,226.95,7.33]
[1757602248352,7.35,227.09,226.95,7.33]
[1757602248556,6.64561233,227.08,226.95,7.33]
[1757602248751,3.56470763,227.07,226.95,7.33]
[1757602248958,7.35,227.09,226.95,7.33]
[1757602249154,6.6452771,227.08,226.95,7.33]
[1757602249458,7.35,227.06,226.95,7.33]
[1757602252657,7.35,227.04,226.89,7.33]
[1757602252851,7.35,227.02,226.89,7.33]
[1757602256157,7.35,227.02,226.89,116.97]
[1757602256353,7.35,227.02,226.89,7.33]
[1757602258460,7.56,227.0,226.86,169.22078847]
[1757602258655,7.56,226.98,226.86,169.22078847]
[1757602259160,7.56,227.02,226.86,169.22078847]
[1757602259354,6.64732261,227.01,226.86,169.22078847]
[1757602259561,7.56,226.99,226.86,169.22078847]
[1757602259763,7.56,227.02,226.86,169.22078847]
[1757602260065,7.56,227.0,226.86,169.22078847]
[1757602260262,7.56,226.98,226.86,169.22078847]
[1757602260456,8.96,227.03,226.86,169.22078847]
[1757602260760,10.13875344,227.02,226.86,169.22078847]
[1757602260966,7.56,227.0,226.87,7.52]
[1757602261264,3.5657481,226.99,226.87,7.52]
[1757602261863,7.56,227.0,226.87,7.52]
[1757602262064,3.56493619,226.99,226.87,7.52]
[1757602262264,7.56,227.0,226.87,7.52]
[1757602262773,13.2,227.08,226.87,109.64]
[1757602263064,127.33581896,227.07,226.88,7.52]
[1757602263254,7.56,227.05,226.88,7.52]
[1757602263459,7.56,227.03,226.88,7.52]
[1757602263659,7.56,227.01,226.88,7.52]
[1757602263863,7.56,226.99,226.88,7.52]
[1757602264758,7.56,226.99,226.88,117.16]
[1757602265162,7.56,226.99,226.88,7.52]
[1757602265363,7.56,226.97,226.86,169.22078847]
[1757602265663,7.56,226.95,226.86,169.22078847]
[1757602266062,7.56,226.95,226.84,303.56]
[1757602266262,7.56,226.95,226.84,7.52]
[1757602268464,7.56,226.93,226.8,7.52]
[1757602271365,7.56,226.99,226.8,7.52]
[1757602271662,7.56,226.99,226.78,110.42716194]
[1757602271663,7.56,226.99,226.81,62.0]
[1757602271863,7.56,226.99,226.82,7.52]
[1757602272062,7.56,226.99,226.81,62.0]
[1757602272063,7.56,226.99,226.84,7.52]
[1757602272563,7.56,226.99,226.86,7.52]
[1757602272865,7.56,226.97,226.86,7.52]
[1757602277672,7.56,226.97,226.79,7.52]
[1757602277872,7.56,226.95,226.79,7.52]
[1757602278067,9.76,226.99,226.79,7.52]
[1757602278068,3.5389418,226.94,226.79,41.54]
[1757602278266,9.76,226.99,226.79,41.54]
[1757602278472,7.56,226.97,226.79,41.54]
[1757602278673,7.56,226.95,226.79,41.54]
[1757602278872,7.56,226.95,226.8,7.52]
[1757602280472,7.56,226.95,226.78,0.76716194]
[1757602280473,7.56,226.95,226.82,7.52]
[1757602281376,7.56,226.95,226.82,72.6]
[1757602281979,7.56,227.0,226.83,7.52]
[1757602282178,7.56,226.98,226.83,7.52]
[1757602282375,3.53789892,226.97,226.83,7.52]
[1757602282682,11.09805063,226.96,226.83,7.52]
[1757602282872,7.56,226.96,226.83,7.52]
[1757602283775,3.538255,226.95,226.83,7.52]
[1757602283982,7.56,226.94,226.83,7.52]
[1757602288588,7.56,226.94,226.79,7.07]
[1757602288881,3.53976308,226.93,226.79,7.07]
[1757602289089,6.84,227.0,226.79,7.07]
[1757602289381,6.84,226.98,226.79,7.07]
[1757602289584,22.32,227.01,226.79,7.07]
[1757602289585,6.84,226.96,226.79,7.07]
[1757602289785,6.84,226.94,226.79,7.07]
[1757602290087,6.84,226.92,226.79,7.07]
[1757602291787,3.53958722,226.91,226.79,7.07]
[1757602291988,6.84,226.92,226.79,7.07]
[1757602292188,6.84,226.9,226.79,7.07]
[1757602293192,6.84,226.88,226.79,7.07]
[1757602294192,6.84,226.91,226.72,7.07]
[1757602294485,6.84,226.89,226.72,7.07]
[1757602296091,6.84,226.89,226.73,7.07]
[1757602296890,6.84,226.89,226.74,54.42]
[1757602297195,6.84,226.89,226.75,7.07]
[1757602299089,6.84,226.87,226.75,7.07]
[1757602305902,6.60815374,226.86,226.71,303.11]
[1757602306200,3.53559124,226.85,226.71,303.11]
[1757602306392,17.24,226.89,226.71,303.11]
[1757602306594,6.84,226.87,226.71,303.11]
[1757602306795,6.84,226.85,226.71,303.11]
[1757602306991,6.84,226.85,226.72,7.07]
[1757602307301,6.84,226.93,226.72,7.07]
[1757602307601,6.84,226.91,226.72,7.07]
[1757602307802,6.58710982,226.9,226.72,7.07]
[1757602308001,3.51414392,226.89,226.72,7.07]
[1757602308198,6.84,226.91,226.72,7.07]
[1757602308398,6.84,226.89,226.72,7.07]
[1757602308797,3.51479807,226.88,226.72,7.07]
[1757602308998,6.84,226.89,226.72,7.07]
[1757602309198,3.51479111,226.88,226.72,7.07]
[1757602309398,6.84,226.89,226.72,7.07]
[1757602309601,6.84,226.87,226.72,7.07]
[1757602309799,14.0,226.94,226.74,7.07]
[1757602309999,16.90652417,226.93,226.74,7.07]
[1757602310300,6.84,226.91,226.74,35.77]
[1757602310495,6.84,226.89,226.74,7.07]
[1757602310702,6.84,226.87,226.74,7.07]
[1757602310899,6.84,226.85,226.74,7.07]
[1757602311500,6.84,226.83,226.74,7.07]
[1757602315502,13.093892,226.87,226.71,296.04]
[1757602315702,6.84,226.85,226.71,296.04]
[1757602315904,6.84,226.83,226.71,296.04]
[1757602316408,6.84,226.81,226.7,7.07]
[1757602317301,6.84,226.86,226.7,7.07]
[1757602317507,6.58216745,226.85,226.7,7.07]
[1757602317706,3.51291654,226.84,226.7,7.07]
[1757602318008,6.84,226.86,226.7,7.07]
[1757602318205,3.51205565,226.85,226.7,7.07]
[1757602318507,6.84,226.86,226.7,7.07]
[1757602318702,3.5128802,226.85,226.7,7.07]
[1757602319007,6.84,226.86,226.7,7.07]
[1757602319207,3.51256869,226.85,226.7,7.07]
[1757602319403,6.84,226.86,226.7,7.07]
[1757602319607,3.51283056,226.85,226.7,7.07]
[1757602319906,7.12,226.89,226.7,7.07]
[1757602320105,6.58300996,226.88,226.7,7.07]
[1757602320304,3.51432821,226.87,226.7,7.07]
[1757602320508,7.12,226.86,226.72,7.28]
[1757602321010,7.12,226.86,226.74,7.28]
[1757602321810,7.12,226.91,226.74,7.28]
[1757602322010,6.58565539,226.9,226.74,7.28]
[1757602322204,6.58657243,226.89,226.74,7.28]
[1757602322404,7.12,226.91,226.74,7.28]
[1757602322609,10.07211977,226.9,226.74,7.28]
[1757602322810,7.12,226.91,226.74,14.48758407]
[1757602323108,7.12,226.91,226.75,7.28]
[1757602323310,7.12,226.91,226.76,7.28]
[1757602324111,10.07421487,226.9,226.76,7.28]
[1757602324320,13.71059261,226.89,226.76,7.28]
[1757602324609,7.12,226.87,226.76,7.28]
[1757602324916,20.54017548,226.95,226.72,7.28]
[1757602324917,7.12,226.85,226.72,7.28]
[1757602325415,7.12,226.83,226.72,7.28]
[1757602326019,7.12,226.83,226.71,296.26]
[1757602326219,7.12,226.81,226.69,7.28]
[1757602327612,3.51764127,226.8,226.69,7.28]
[1757602327821,7.12,226.79,226.69,7.28]
[1757602329324,3.51988932,226.78,226.69,7.28]
[1757602329621,7.12,226.77,226.69,7.28]
[1757602332121,7.12,226.77,226.63,8.04761884]
[1757602332314,3.51623705,226.76,226.63,8.04761884]
[1757602332519,7.12,226.75,226.63,7.28]
[1757602333621,7.12,226.73,226.63,7.28]
[1757602333820,7.12,226.73,226.58,296.24]
[1757602334020,7.12,226.71,226.58,296.24]
[1757602334321,7.12,226.71,226.56,7.28]
[1757602334322,7.12,226.75,226.56,7.28]
[1757602334526,7.12,226.73,226.56,7.28]
[1757602334715,7.12,226.71,226.56,7.28]
[1757602334919,6.58401267,226.7,226.56,7.28]
[1757602335125,7.12,226.71,226.56,7.28]
[1757602335326,7.12,226.69,226.56,7.28]
[1757602337524,7.12,226.67,226.49,7.28]
[1757602337925,7.12,226.65,226.49,7.28]
[1757602338125,7.12,226.63,226.49,7.28]
[1757602338426,7.12,226.63,226.45,296.3]
[1757602338625,6.47731244,226.62,226.44,7.28]
[1757602338926,7.12,226.6,226.4,7.28]
[1757602339124,7.12,226.58,226.4,7.28]
[1757602339324,7.12,226.56,226.4,7.28]
[1757602339827,7.12,226.61,226.4,7.28]
[1757602340024,7.12,226.59,226.4,7.28]
[1757602340226,7.12,226.57,226.4,7.28]
[1757602341527,7.12,226.55,226.4,7.28]
[1757602341730,7.12,226.61,226.42,7.28]
[1757602341929,7.12,226.61,226.43,7.28]
[1757602342522,26.74,226.65,226.43,7.28]
[1757602343730,7.12,226.65,226.44,62.0]
[1757602344032,7.12,226.71,226.45,7.28]
[1757602347034,7.12,226.71,226.46,32.86]
[1757602347235,7.12,226.71,226.47,7.28]
[1757602347436,7.12,226.71,226.49,7.42]
[1757602348138,7.43,226.71,226.51,7.42]
[1757602348731,7.43,226.83,226.51,7.42]
[1757602348933,7.43,226.83,226.53,7.42]
[1757602349937,7.43,226.83,226.54,7.42]
[1757602350139,7.43,226.83,226.55,7.42]
[1757602350337,7.43,226.83,226.56,7.42]
[1757602351135,7.43,226.83,226.58,7.42]
[1757602352041,7.43,226.83,226.6,7.42]
[1757602352740,7.43,226.81,226.6,7.42]
[1757602355032,7.43,226.81,226.62,7.42]
[1757602355428,7.43,226.79,226.62,7.42]
[1757602357435,7.43,226.79,226.61,7.42]
[1757602358435,7.43,226.79,226.63,7.42]
[1757602358637,7.43,226.79,226.64,48.24]
[1757602359839,7.43,226.79,226.65,7.42]
[1757602363543,7.43,226.84,226.65,7.42]
[1757602364237,9.92171479,226.83,226.65,7.42]
[1757602364536,17.35232188,226.82,226.65,7.42]
[1757602364740,7.43,226.8,226.65,7.42]
[1757602366840,7.43,226.8,226.66,7.42]
[1757602368543,7.43,226.84,226.61,7.42]
[1757602368744,7.43,226.82,226.61,59.56]
[1757602368943,6.47684258,226.81,226.61,59.56]
[1757602369139,7.43,226.84,226.61,59.56]
[1757602369338,26.1,226.85,226.61,59.56]
[1757602369339,7.43,226.82,226.61,59.56]
[1757602369544,6.47829698,226.81,226.61,59.56]
[1757602369743,26.1,226.85,226.61,59.56]
[1757602369938,9.96575316,226.84,226.61,59.56]
[1757602370141,7.43,226.82,226.61,59.56]
[1757602370441,7.43,226.79,226.62,7.42]
[1757602373549,7.43,226.77,226.62,7.42]
[1757602379150,7.43,226.77,226.62,54.3]
[1757602379549,7.43,226.77,226.62,7.42]
[1757602380452,7.2,226.75,226.56,7.32]
[1757602382142,7.2,226.8,226.57,7.32]
[1757602382346,7.2,226.78,226.57,7.32]
[1757602384148,7.2,226.8,226.57,7.32]
[1757602384349,7.2,226.78,226.58,110.56]
[1757602384554,7.2,226.76,226.59,7.32]
[1757602386251,7.2,226.74,226.59,7.32]
[1757602386451,7.2,226.72,226.59,7.32]
[1757602386762,7.2,226.7,226.59,7.32]
[1757602387058,20.4,226.78,226.54,7.32]
[1757602387358,7.2,226.76,226.54,7.32]
[1757602387558,7.2,226.74,226.54,7.32]
[1757602387757,7.2,226.72,226.54,7.32]
[1757602387957,7.2,226.7,226.54,7.32]
[1757602388160,7.2,226.68,226.54,7.32]
[1757602389054,7.2,226.66,226.54,7.32]
[1757602389566,7.2,226.69,226.51,296.44]
[1757602389760,7.2,226.67,226.51,296.44]
[1757602390059,9.96442123,226.66,226.51,296.44]
[1757602390260,17.16442123,226.65,226.51,296.44]
[1757602390457,7.2,226.63,226.51,296.44]
[1757602391163,7.2,226.71,226.52,7.32]
[1757602391362,9.95833552,226.7,226.52,7.32]
[1757602391558,9.95833552,226.69,226.52,7.32]
[1757602391752,9.95833552,226.68,226.52,7.32]
[1757602392063,6.49328307,226.67,226.52,7.32]
[1757602392263,7.2,226.68,226.52,7.32]
[1757602392463,6.49212565,226.67,226.52,7.32]
[1757602392765,7.2,226.68,226.52,7.32]
[1757602392955,6.49212043,226.67,226.52,7.32]
[1757602393158,7.2,226.68,226.52,7.32]
[1757602394561,7.2,226.68,226.53,110.48]
[1757602394766,7.2,226.68,226.54,7.32]
[1757602395366,7.2,226.68,226.54,117.78]
[1757602395767,7.2,226.66,226.54,7.32]
[1757602398373,7.2,226.77,226.54,7.32]
[1757602398569,7.2,226.75,226.54,7.32]
[1757602398867,7.2,226.73,226.56,7.32]
[1757602399067,7.2,226.71,226.56,7.32]
[1757602404871,7.2,226.81,226.57,7.20758407]
[1757602405076,7.2,226.79,226.58,7.32]
[1757602405278,3.43827836,226.78,226.58,7.32]
[1757602405475,7.2,226.77,226.58,7.32]
[1757602406574,7.08,226.84,226.58,7.32]
[1757602406575,7.2,226.75,226.59,44.12]
[1757602406783,4.78017548,226.83,226.59,44.12]
[1757602406784,7.2,226.82,226.59,44.12]
[1757602407081,7.2,226.8,226.59,44.12]
[1757602407274,9.95369355,226.79,226.59,44.12]
[1757602407577,9.95369355,226.78,226.59,44.12]
[1757602407780,17.06369355,226.77,226.58,7.32]
[1757602407974,7.11,226.75,226.58,7.32]
[1757602408184,7.11,226.73,226.58,7.32]
[1757602408480,7.11,226.71,226.58,7.32]
[1757602408884,7.11,226.71,226.51,303.64758407]
[1757602409079,7.11,226.69,226.52,7.14]
[1757602409283,7.11,226.67,226.52,7.14]
[1757602409887,7.11,226.65,226.52,7.14]
[1757602414486,7.11,226.71,226.52,7.14]
[1757602414786,9.96008799,226.7,226.52,7.14]
[1757602414984,9.96008799,226.69,226.52,7.14]
[1757602415185,6.49068171,226.68,226.52,7.14]
[1757602415382,7.11,226.71,226.52,7.14]
[1757602415578,7.11,226.69,226.52,7.14]
[1757602415784,6.49120072,226.68,226.52,7.14]
[1757602416084,7.11,226.69,226.52,7.14]
[1757602416286,6.49159119,226.68,226.52,7.14]
[1757602416584,7.11,226.69,226.52,7.14]
[1757602416785,6.49282844,226.68,226.52,7.14]
[1757602416985,7.11,226.69,226.52,7.14]
[1757602418578,7.11,226.75,226.54,7.14]
[1757602418782,7.11,226.73,226.54,7.14]
[1757602418989,7.11,226.71,226.54,7.14]
[1757602419190,7.11,226.69,226.54,7.14]
[1757602419390,6.49402273,226.68,226.54,7.14]
[1757602419590,7.11,226.69,226.54,7.14]
[1757602419891,7.11,226.67,226.54,7.14]
[1757602424292,7.11,226.76,226.54,7.14]
[1757602424492,7.11,226.74,226.54,7.14]
[1757602424693,9.97577233,226.73,226.54,7.14]
[1757602424892,7.11,226.71,226.54,7.14]
[1757602425187,7.11,226.69,226.55,60.88]
[1757602425393,7.11,226.69,226.56,90.8]
[1757602425588,6.50043832,226.68,226.56,110.18]
[1757602425785,7.11,226.75,226.54,7.14]
[1757602425983,7.11,226.73,226.56,110.2]
[1757602426190,9.97540429,226.72,226.56,110.2]
[1757602426386,7.11,226.7,226.56,110.2]
[1757602426590,7.11,226.68,226.56,110.2]
[1757602427395,6.51774716,226.67,226.56,110.2]
[1757602427596,10.57338427,226.66,226.56,110.2]
[1757602427796,7.11,226.66,226.56,110.2]
[1757602428394,7.11,226.66,226.54,7.14]
[1757602428899,7.11,226.73,226.54,7.14]
[1757602429199,7.11,226.71,226.54,7.14]
[1757602429498,9.99368591,226.7,226.54,7.14]
[1757602429699,7.11,226.71,226.54,7.14]
[1757602429700,6.51828741,226.69,226.54,7.14]
[1757602429897,7.11,226.71,226.54,7.14]
[1757602430202,7.11,226.71,226.56,7.14]
[1757602430203,9.9954736,226.7,226.56,7.14]
[1757602430396,6.51952627,226.69,226.56,7.14]
[1757602430601,7.11,226.71,226.56,7.14]
[1757602430802,9.99654288,226.7,226.56,7.14]
[1757602431103,6.52022426,226.69,226.56,7.14]
[1757602431400,7.11,226.71,226.56,7.14]
[1757602431596,9.99709678,226.7,226.56,7.14]
[1757602431796,7.11,226.71,226.56,7.14]
[1757602431995,6.52095593,226.7,226.56,7.14]
[1757602432201,7.11,226.71,226.56,7.14]
[1757602432399,3.4648948,226.7,226.56,7.14]
[1757602432605,7.11,226.71,226.56,7.14]
[1757602432804,6.52179512,226.7,226.56,7.14]
[1757602433005,7.11,226.71,226.56,7.14]
[1757602433206,6.52179616,226.7,226.56,7.14]
[1757602433403,7.11,226.71,226.56,7.14]
[1757602433603,9.99516339,226.7,226.56,7.14]
[1757602433804,7.11,226.71,226.56,7.14]
[1757602434008,9.99517483,226.7,226.56,7.14]
[1757602434310,3.46529522,226.69,226.56,7.14]
[1757602434510,7.11,226.71,226.56,7.14]
[1757602434809,3.46542911,226.7,226.56,7.14]
[1757602435011,7.11,226.71,226.56,7.14]
[1757602435206,3.46488683,226.7,226.56,7.14]
[1757602435411,7.11,226.71,226.56,7.14]